bitfinex/quotes_SOLUSD_20250718
["timestamp","ask_amount","ask_price","bid_price","bid_amount"]
[1752810266002,0.14216157,181.08,181.06,4.54845127]
[1752810266208,0.06,181.12,181.06,0.03]
[1752810266209,31.52156774,181.11,181.06,0.03]
[1752810266413,0.14216157,181.1,181.07,3.84728663]
[1752810266582,6.52852904,181.08,181.07,28.26]
[1752810266780,6.52852904,181.08,181.07,32.77712191]
[1752810266981,6.52852904,181.09,181.07,32.77712191]
[1752810267290,6.52852904,181.09,181.08,0.67]
[1752810267907,0.14216157,181.1,181.08,0.67]
[1752810268109,6.52852904,181.09,181.08,0.67]
[1752810268415,6.52852904,181.11,181.08,10.03799708]
[1752810268715,6.52852904,181.11,181.09,4.51545256]
[1752810268895,6.52852904,181.11,181.09,0.67]
[1752810269417,6.52852904,181.1,181.07,41.6007445]
[1752810269618,6.52852904,181.11,181.08,3.84598049]
[1752810269912,6.52852904,181.11,181.09,3.84598049]
[1752810270121,6.52852904,181.11,181.1,0.67]
[1752810271326,26.06,181.12,181.1,0.67]
[1752810271491,6.52852904,181.11,181.1,0.67]
[1752810271695,6.52852904,181.11,181.1,28.93]
[1752810272189,26.06,181.12,181.1,28.93]
[1752810272394,0.06,181.12,181.1,28.26]
[1752810272790,6.52852904,181.11,181.1,28.26]
[1752810273000,0.06,181.12,181.1,32.10512174]
[1752810273211,6.58852904,181.12,181.1,28.26]
[1752810273417,6.58852904,181.12,181.11,4.51467911]
[1752810273820,0.06,181.12,181.11,0.67]
[1752810274213,0.06,181.12,181.11,4.51511057]
[1752810274518,0.06,181.12,181.11,10.03661683]
[1752810274708,0.06,181.12,181.11,4.51511057]
[1752810275303,0.06,181.12,181.11,10.03661683]
[1752810276209,0.06,181.12,181.11,26.8213008]
[1752810281827,0.06,181.12,181.11,21.29979454]
[1752810282213,6.58852904,181.12,181.11,4.51511057]
[1752810282412,6.58852904,181.12,181.11,0.67]
[1752810282633,0.06,181.12,181.11,0.67]
[1752810282819,0.06,181.12,181.11,4.51131189]
[1752810283619,0.06,181.12,181.11,0.67]
[1752810284511,6.58852904,181.12,181.11,0.67]
[1752810287238,0.06,181.12,181.11,0.67]
[1752810287404,6.58852904,181.12,181.11,0.67]
[1752810288407,12.10982501,181.12,181.1,28.26]
[1752810288625,6.52852904,181.11,181.1,28.26]
[1752810289929,6.4921097,181.11,181.1,28.26]
[1752810290909,6.52852904,181.11,181.1,32.77320101]
[1752810291825,0.06,181.12,181.1,32.77320101]
[1752810292009,6.52852904,181.11,181.1,28.26]
[1752810292204,6.52852904,181.11,181.1,32.10307765]
[1752810292717,6.52852904,181.11,181.1,32.81307765]
[1752810294323,6.58852904,181.12,181.1,55.11957277]
[1752810294525,6.58852904,181.12,181.11,0.71]
[1752810294723,0.06,181.12,181.11,0.71]
[1752810295837,6.58852904,181.12,181.11,0.71]
[1752810296631,0.06,181.12,181.11,23.01619023]
[1752810296931,0.06,181.12,181.11,26.8534052]
[1752810298533,6.58852904,181.12,181.11,4.54721497]
[1752810298924,0.06,181.16,181.13,16.78468397]
[1752810299233,0.06,181.16,181.14,28.24]
[1752810299537,0.06,181.16,181.15,5.52028705]
[1752810299723,0.06,181.16,181.15,26.84818719]
[1752810300127,0.06,181.16,181.15,10.06350322]
[1752810300437,0.06,181.16,181.15,4.54321617]
[1752810301135,0.06,181.16,181.15,0.71]
[1752810301334,6.58852904,181.16,181.15,3.83604608]
[1752810301525,0.06,181.16,181.15,32.78680334]
[1752810301916,6.58852904,181.16,181.15,32.78680334]
[1752810302123,6.58852904,181.16,181.15,28.95]
[1752810302339,6.58852904,181.16,181.15,32.076918]
[1752810302842,6.58852904,181.16,181.15,28.95]
[1752810303835,0.06,181.16,181.15,28.95]
[1752810304134,6.58852904,181.16,181.15,32.07897472]
[1752810304338,6.58852904,181.16,181.15,28.24]
[1752810304840,6.73069061,181.16,181.15,28.24]
[1752810305136,6.73069061,181.16,181.11,28.24]
[1752810305137,12.55067294,181.16,181.11,28.24]
[1752810305338,6.52852904,181.12,181.11,28.24]
[1752810305535,6.52852904,181.12,181.11,32.0866843]
[1752810305727,6.67069061,181.12,181.11,32.0866843]
[1752810305929,12.49189202,181.12,181.11,28.24]
[1752810306129,12.49189202,181.12,181.1,28.24]
[1752810306324,0.14216157,181.1,181.06,0.74]
[1752810306522,0.44216157,181.11,181.07,32.09153129]
[1752810306730,0.44216157,181.11,181.08,3.85153129]
[1752810307040,0.44216157,181.11,181.07,28.24]
[1752810307229,0.44216157,181.11,181.08,3.85153621]
[1752810307430,0.44216157,181.1,181.07,28.24]
[1752810307640,0.3,181.1,181.08,3.85354308]
[1752810307840,6.67069061,181.09,181.07,28.24]
[1752810308018,6.52852904,181.08,181.07,28.95]
[1752810308218,6.52852904,181.08,181.07,32.80433929]
[1752810308636,0.14216157,181.09,181.07,32.80433929]
[1752810308823,6.52852904,181.08,181.07,28.95]
[1752810309027,6.52852904,181.08,181.07,32.80434673]
[1752810310736,5.52062308,181.14,181.07,32.80434673]
[1752810310937,6.52852904,181.09,181.08,3.85434673]
[1752810311132,6.52852904,181.09,181.08,32.09434673]
[1752810312921,0.14216157,181.13,181.08,32.80434673]
[1752810313125,6.52852904,181.11,181.09,4.5627257]
[1752810313329,6.52852904,181.11,181.1,32.8027257]
[1752810313955,6.52852904,181.13,181.1,38.32442046]
[1752810314127,0.06,181.16,181.11,6.2196257]
[1752810314328,6.52852904,181.15,181.12,32.0927257]
[1752810314532,6.52852904,181.15,181.13,3.8527257]
[1752810314716,6.52852904,181.15,181.14,32.8027257]
[1752810315230,6.58852904,181.16,181.14,32.8027257]
[1752810315430,6.58852904,181.16,181.15,3.8527257]
[1752810315638,6.58852904,181.16,181.15,4.5627257]
[1752810316425,6.58852904,181.16,181.15,3.8527257]
[1752810316626,12.55067294,181.16,181.15,3.8527257]
[1752810316820,0.14216157,181.15,181.12,28.24]
[1752810317045,6.67069061,181.13,181.12,28.24]
[1752810318120,6.67069061,181.13,181.12,32.091972]
[1752810318724,0.14216157,181.13,181.12,32.091972]
[1752810319049,6.52852904,181.13,181.12,32.801972]
[1752810321246,6.52852904,181.13,181.12,32.091972]
[1752810322135,0.14216157,181.14,181.12,38.27311146]
[1752810322332,6.52852904,181.13,181.12,3.851972]
[1752810322531,6.67069061,181.13,181.12,28.24]
[1752810322727,0.14216157,181.12,181.07,0.03]
[1752810322926,6.52852904,181.08,181.07,0.03]
[1752810323155,6.52852904,181.08,181.07,32.78325872]
[1752810323732,0.14216157,181.12,181.07,32.78325872]
[1752810323931,0.44216157,181.12,181.08,3.85325872]
[1752810324235,26.0,181.13,181.07,28.27]
[1752810324236,0.14216157,181.08,181.07,28.27]
[1752810324440,6.67069061,181.08,181.07,32.12344044]
[1752810325247,6.67069061,181.08,181.07,32.78344044]
[1752810326350,31.82094465,181.13,181.07,32.78344044]
[1752810326553,6.52852904,181.1,181.08,4.51344044]
[1752810326738,6.52852904,181.1,181.09,32.75344044]
[1752810327054,6.52852904,181.11,181.09,32.75344044]
[1752810327256,6.52852904,181.11,181.1,3.85344044]
[1752810327552,6.52852904,181.11,181.1,4.51344044]
[1752810328153,26.14216157,181.12,181.1,3.85344044]
[1752810328355,6.52852904,181.11,181.09,28.24]
[1752810328563,26.14216157,181.12,181.1,3.85417917]
[1752810328747,0.14216157,181.1,181.09,28.24]
[1752810328943,6.67069061,181.1,181.09,32.09463792]
[1752810329460,6.67069061,181.1,181.09,28.24]
[1752810329761,6.97069061,181.1,181.07,28.27]
[1752810329964,6.67069061,181.08,181.07,28.27]
[1752810330258,6.67069061,181.08,181.07,32.12420868]
[1752810330630,6.67069061,181.08,181.07,28.27]
[1752810331236,6.67069061,181.08,181.07,0.03]
[1752810335056,12.49311163,181.08,181.07,0.03]
[1752810335941,26.0,181.06,181.05,0.03]
[1752810336142,32.67069061,181.06,181.05,0.03]
[1752810336645,6.52852904,181.1,181.05,0.03]
[1752810336646,5.52158692,181.11,181.05,0.69]
[1752810336948,6.52852904,181.07,181.05,28.93]
[1752810337143,6.52852904,181.07,181.06,0.66]
[1752810338547,6.52852904,181.07,181.05,28.27]
[1752810338745,6.52852904,181.06,181.05,28.27]
[1752810339052,12.19263579,181.1,181.05,28.27]
[1752810339259,6.52852904,181.06,181.05,28.93]
[1752810340754,6.67069061,181.06,181.05,28.27]
[1752810341157,6.67069061,181.06,181.05,0.03]
[1752810341369,12.19372164,181.06,181.05,0.03]
[1752810341669,12.49372164,181.06,181.05,0.03]
[1752810342168,38.49372164,181.06,181.05,0.03]
[1752810343176,38.19372164,181.06,181.05,0.03]
[1752810344071,38.49372164,181.06,181.05,0.03]
[1752810345478,26.14216157,181.06,181.05,0.03]
[1752810345669,32.67069061,181.06,181.05,0.69]
[1752810345865,32.52852904,181.06,181.05,0.69]
[1752810346057,32.52852904,181.06,181.05,0.03]
[1752810346255,38.19372164,181.06,181.05,0.03]
[1752810346512,38.49372164,181.06,181.05,0.03]
[1752810346684,32.67069061,181.06,181.05,0.03]
[1752810346852,26.14216157,181.06,181.05,0.03]
[1752810347058,32.67069061,181.06,181.05,0.03]
[1752810348158,38.19372164,181.06,181.05,0.03]
[1752810348770,32.67069061,181.06,181.05,0.03]
[1752810349570,38.19372164,181.06,181.05,0.03]
[1752810351185,32.67069061,181.06,181.05,0.03]
[1752810352685,38.19372164,181.06,181.05,0.03]
[1752810353071,38.49372164,181.06,181.05,0.03]
[1752810353670,38.19372164,181.06,181.05,0.03]
[1752810353875,38.49372164,181.06,181.05,0.03]
[1752810354671,66.73372164,181.06,181.05,0.03]
[1752810357884,66.79372164,181.06,181.05,0.03]
[1752810359004,60.2651926,181.06,181.05,0.03]
[1752810359192,66.79372164,181.06,181.05,0.03]
[1752810360302,66.49372164,181.06,181.05,0.03]
[1752810361171,32.73069061,181.06,181.05,0.75]
[1752810361381,32.58852904,181.06,181.05,0.75]
[1752810361887,32.58852904,181.06,181.05,0.03]
[1752810361888,38.25372164,181.06,181.05,0.03]
[1752810362085,32.73069061,181.06,181.05,0.03]
[1752810362596,32.73069061,181.06,181.05,0.75]
[1752810364193,32.73069061,181.06,181.05,0.03]
[1752810364399,38.25372164,181.06,181.05,0.03]
[1752810365093,32.73069061,181.06,181.05,0.75]
[1752810369312,32.73069061,181.06,181.05,4.59651374]
[1752810371405,32.73069061,181.06,181.05,4.59713729]
[1752810374479,38.25372164,181.06,181.05,3.87713729]
[1752810374715,38.25372164,181.06,181.05,3.88059742]
[1752810374890,32.73069061,181.06,181.05,3.88059742]
[1752810375699,38.25372164,181.06,181.05,0.03]
[1752810376903,38.55372164,181.06,181.05,0.03]
[1752810377401,38.25372164,181.06,181.05,0.03]
[1752810377703,26.20216157,181.06,181.05,0.75]
[1752810377903,32.73069061,181.06,181.05,0.75]
[1752810378206,32.73069061,181.06,181.05,4.60116766]
[1752810379988,38.25372164,181.06,181.05,4.60116766]
[1752810380188,38.25372164,181.06,181.05,3.88116766]
[1752810380688,38.25372164,181.06,181.05,4.60116766]
[1752810380887,38.19372164,181.06,181.05,4.60116766]
[1752810381198,32.67069061,181.06,181.05,4.60116766]
[1752810389217,32.67069061,181.06,181.05,4.59116766]
[1752810391802,32.67069061,181.06,181.05,3.88116766]
[1752810391803,38.19372164,181.06,181.05,3.88116766]
[1752810392418,38.19372164,181.06,181.05,0.03]
[1752810392610,38.19372164,181.06,181.05,3.89582845]
[1752810392811,38.19372164,181.06,181.05,0.03]
[1752810393225,38.19372164,181.06,181.05,3.89558312]
[1752810394125,26.14216157,181.06,181.05,4.60558312]
[1752810394304,0.06,181.06,181.05,4.60558312]
[1752810394501,6.58852904,181.06,181.05,4.60558312]
[1752810395027,6.58852904,181.06,181.05,4.60485209]
[1752810395442,6.73069061,181.06,181.05,3.89485209]
[1752810396412,12.25372164,181.06,181.05,3.89485209]
[1752810396608,12.25372164,181.06,181.05,3.79109659]
[1752810397829,5.7251926,181.06,181.04,0.03]
[1752810398031,6.52852904,181.05,181.04,0.03]
[1752810398832,12.05186513,181.05,181.04,0.03]
[1752810400207,6.52852904,181.05,181.04,0.74]
[1752810401120,0.14216157,181.05,181.04,0.74]
[1752810401441,6.67069061,181.05,181.04,0.74]
[1752810403947,6.67069061,181.05,181.04,0.03]
[1752810404118,6.67069061,181.05,181.04,0.74]
[1752810405555,6.67069061,181.05,181.04,0.03]
[1752810405725,6.67069061,181.05,181.04,0.74]
[1752810406825,6.67069061,181.05,181.04,0.03]
[1752810407331,12.1940267,181.05,181.04,0.03]
[1752810408726,12.1940267,181.05,181.04,3.89676641]
[1752810410544,12.1940267,181.05,181.04,0.03]
[1752810413048,12.1940267,181.05,181.04,3.89842168]
[1752810416139,12.1940267,181.05,181.04,4.54842168]
[1752810417552,5.66549766,181.05,181.04,4.54842168]
[1752810417850,12.1940267,181.05,181.04,4.54842168]
[1752810418253,6.67069061,181.05,181.04,4.54842168]
[1752810419554,32.52852904,181.05,181.04,4.54842168]
[1752810419863,26.0,181.05,181.04,4.54842168]
[1752810420155,32.52852904,181.05,181.04,4.54842168]
[1752810420733,32.52852904,181.05,181.04,4.52933259]
[1752810421542,32.58852904,181.05,181.04,4.52933259]
[1752810423857,38.11186513,181.05,181.04,4.52933259]
[1752810424057,32.58852904,181.05,181.04,4.52933259]
[1752810424558,38.2540267,181.05,181.04,3.87933259]
[1752810424940,38.2540267,181.05,181.04,0.03]
[1752810427445,38.5540267,181.05,181.04,0.03]
[1752810428857,32.02549766,181.05,181.04,0.03]
[1752810429087,38.5540267,181.05,181.04,0.03]
[1752810430454,0.14216157,181.04,181.02,0.03]
[1752810430760,6.97069061,181.03,181.02,0.03]
[1752810432165,12.49463691,181.03,181.02,0.03]
[1752810433264,26.14216157,181.01,181.0,0.03]
[1752810433465,0.14216157,181.0,180.99,0.03]
[1752810433669,6.67069061,180.99,180.98,0.03]
[1752810434163,12.19585774,180.99,180.98,0.03]
[1752810434667,12.49585774,180.99,180.98,0.03]
[1752810434865,0.14216157,180.98,180.97,0.03]
[1752810435044,32.67069061,180.98,180.97,0.03]
[1752810435649,6.97069061,180.98,180.97,0.03]
[1752810436041,0.14216157,180.95,180.91,0.68]
[1752810436271,12.05552843,180.93,180.92,0.03]
[1752810436650,12.19769,180.93,180.92,0.03]
[1752810437153,38.49769,180.93,180.92,0.03]
[1752810437349,12.19769,180.93,180.92,0.03]
[1752810437949,26.0,180.94,180.89,0.1757]
[1752810437950,0.14216157,180.92,180.89,0.1757]
[1752810438158,6.52852904,180.91,180.9,3.84422545]
[1752810438649,6.52852904,180.91,180.9,4.49422545]
[1752810438877,6.52852904,180.92,180.9,4.49422545]
[1752810439074,6.52852904,180.92,180.91,4.49422545]
[1752810439265,6.67069061,180.92,180.89,0.8257]
[1752810439450,0.14216157,180.93,180.9,0.65]
[1752810439656,6.52852904,180.91,180.9,0.65]
[1752810442074,0.14216157,180.93,180.9,0.65]
[1752810442259,6.52852904,180.91,180.9,0.65]
[1752810444153,6.52852904,180.91,180.9,0.68]
[1752810444878,32.52852904,180.91,180.9,0.72]
[1752810445680,32.52852904,180.91,180.9,0.03]
[1752810445882,32.67069061,180.91,180.9,0.03]
[1752810446178,38.19830102,180.91,180.9,0.03]
[1752810447082,32.67069061,180.91,180.9,0.03]
[1752810447266,32.67069061,180.91,180.9,0.72]
[1752810448259,38.19830102,180.91,180.9,0.03]
[1752810449064,38.49830102,180.91,180.9,0.03]
[1752810450163,38.19830102,180.91,180.9,0.03]
[1752810450993,26.0,180.92,180.9,0.72]
[1752810451167,6.52852904,180.91,180.9,0.03]
[1752810451783,6.52852904,180.91,180.9,0.72]
[1752810451984,12.05613945,180.91,180.9,0.03]
[1752810452492,12.19830102,180.91,180.9,0.03]
[1752810453481,31.52738102,180.92,180.9,0.03]
[1752810453673,6.67069061,180.91,180.9,0.72]
[1752810454580,6.67069061,180.91,180.9,0.03]
[1752810455369,6.52852904,180.91,180.9,0.72]
[1752810455976,26.0,180.92,180.9,0.72]
[1752810456182,6.52852904,180.91,180.9,0.72]
[1752810456370,6.52852904,180.91,180.9,0.03]
[1752810457376,6.67069061,180.91,180.9,0.03]
[1752810457582,6.97069061,180.91,180.9,0.03]
[1752810458394,12.49830102,180.91,180.9,0.03]
[1752810458694,12.19830102,180.91,180.9,0.03]
[1752810459289,12.49830102,180.91,180.9,0.03]
[1752810459976,5.66977198,180.91,180.9,0.03]
[1752810460177,12.19830102,180.91,180.9,0.03]
[1752810461591,12.49830102,180.91,180.9,0.03]
[1752810462194,12.19830102,180.91,180.9,0.03]
[1752810464387,19.02683006,180.91,180.9,0.03]
[1752810464792,0.14216157,180.9,180.89,0.1757]
[1752810464998,13.49921965,180.9,180.89,0.1757]
[1752810466303,13.49921965,180.9,180.88,0.2]
[1752810466478,5.97038314,180.89,180.88,0.2]
[1752810466678,0.14216157,180.88,180.87,0.2]
[1752810466906,0.44216157,180.88,180.87,0.2]
[1752810468717,5.97068877,180.88,180.87,0.2]
[1752810468884,12.49921781,180.88,180.87,0.2]
[1752810472717,12.49921781,180.88,180.86,0.03]
[1752810472894,6.97069061,180.87,180.86,0.03]
[1752810473417,0.14216157,180.83,180.82,0.03]
[1752810473587,6.67069061,180.83,180.82,0.03]
[1752810474910,6.67069061,180.83,180.82,0.74]
[1752810475688,12.20074646,180.83,180.82,0.03]
[1752810476400,6.52852904,180.83,180.82,0.74]
[1752810478116,6.67069061,180.84,180.82,0.74]
[1752810478612,6.67069061,180.83,180.82,0.74]
[1752810480923,6.52852904,180.83,180.82,0.74]
[1752810481225,6.67069061,180.83,180.82,4.60537264]
[1752810481409,6.67069061,180.83,180.82,0.74]
[1752810482617,6.52852904,180.83,180.82,6.27036168]
[1752810482792,6.52852904,180.83,180.82,4.60347176]
[1752810482991,6.52852904,180.84,180.82,4.60347176]
[1752810483198,6.52852904,180.9,180.83,0.71]
[1752810483399,6.52852904,180.85,180.83,0.71]
[1752810484698,6.52852904,180.85,180.83,6.23999577]
[1752810484895,6.52852904,180.85,180.84,0.71]
[1752810485108,6.52852904,180.85,180.84,4.57148043]
[1752810485301,26.0,180.87,180.84,4.57148043]
[1752810485518,32.52852904,180.87,180.84,28.93]
[1752810485723,32.52852904,180.87,180.85,12.84034581]
[1752810485906,26.0,180.87,180.86,3.86138436]
[1752810486218,32.52852904,180.87,180.86,0.71]
[1752810487623,26.0,180.88,180.86,0.71]
[1752810487823,26.20216157,180.91,180.86,6.23906465]
[1752810488043,6.52852904,180.89,180.87,4.57122321]
[1752810488217,6.58852904,180.88,180.86,5.52906465]
[1752810488542,6.58852904,180.88,180.87,3.861767]
[1752810488723,6.58852904,180.88,180.87,4.571767]
[1752810489535,6.73069061,180.88,180.87,0.71]
[1752810490021,6.73069061,180.88,180.87,4.57097666]
[1752810490704,6.73069061,180.88,180.87,0.71]
[1752810491716,0.06,180.88,180.87,0.71]
[1752810491922,0.06,180.88,180.87,10.10041293]
[1752810492134,0.06,180.91,180.88,16.78468397]
[1752810492419,0.06,180.91,180.89,33.68518007]
[1752810492616,0.06,180.91,180.9,3.86158007]
[1752810492930,0.06,180.91,180.9,4.57158007]
[1752810493796,6.58852904,180.91,180.9,4.57158007]
[1752810494206,6.58852904,180.91,180.9,3.86158007]
[1752810494812,6.58852904,180.91,180.9,4.57158007]
[1752810495014,6.58852904,180.91,180.9,0.71]
[1752810498026,0.06,180.91,180.9,0.71]
[1752810498227,6.58852904,180.91,180.9,0.71]
[1752810500028,12.25830102,180.91,180.89,29.8236]
[1752810500230,6.52852904,180.9,180.89,29.8236]
[1752810500524,6.52852904,180.9,180.89,28.2]
[1752810500731,26.0,180.87,180.8,7.7474]
[1752810500900,0.14216157,180.86,180.84,0.71]
[1752810501104,6.52852904,180.85,180.84,0.71]
[1752810501909,6.67069061,180.85,180.82,28.23]
[1752810502117,6.52852904,180.84,180.83,0.71]
[1752810503023,6.52852904,180.84,180.83,4.57224047]
[1752810503217,6.52852904,180.85,180.83,4.57224047]
[1752810503405,6.52852904,180.85,180.84,4.57127957]
[1752810503606,6.52852904,180.85,180.84,0.71]
[1752810504409,6.67069061,180.85,180.84,0.03]
[1752810504835,12.2001349,180.85,180.84,0.03]
[1752810505331,12.2001349,180.85,180.84,0.74]
[1752810505734,12.2001349,180.85,180.84,0.03]
[1752810506735,0.14216157,180.85,180.79,0.3189784]
[1752810506921,0.14216157,180.85,180.81,0.71]
[1752810506922,6.52852904,180.83,180.81,0.71]
[1752810507119,6.52852904,180.83,180.82,0.71]
[1752810508731,12.05861901,180.83,180.81,28.2]
[1752810509033,6.52852904,180.82,180.81,28.2]
[1752810509623,6.67069061,180.82,180.81,28.2]
[1752810509814,0.14216157,180.81,180.79,0.3189784]
[1752810510134,6.52852904,180.8,180.79,0.3189784]
[1752810510930,12.05950249,180.8,180.79,0.3189784]
[1752810511340,6.52852904,180.81,180.79,4.88592153]
[1752810511648,6.52852904,180.81,180.8,0.71]
[1752810511931,32.52852904,180.81,180.8,4.56698613]
[1752810512538,32.52852904,180.81,180.8,4.5668359]
[1752810512922,32.52852904,180.81,180.8,0.71]
[1752810514431,38.05919659,180.81,180.8,0.71]
[1752810514640,32.52852904,180.81,180.8,0.71]
[1752810517436,6.52852904,180.84,180.81,16.78468397]
[1752810517634,13.82100102,180.89,180.82,40.39828048]
[1752810517835,6.52852904,180.84,180.83,0.71]
[1752810518020,6.52852904,180.84,180.83,4.55684186]
[1752810518736,6.52852904,180.84,180.83,0.71]
[1752810519640,26.0,180.84,180.83,0.71]
[1752810519841,32.52852904,180.84,180.83,0.71]
[1752810521334,26.0,180.84,180.83,0.71]
[1752810521530,26.0,180.84,180.83,4.55841427]
[1752810521720,5.52883286,180.87,180.83,0.71]
[1752810521926,6.52852904,180.85,180.83,0.71]
[1752810522122,6.52852904,180.85,180.83,28.91]
[1752810522322,6.52852904,180.85,180.83,28.2]
[1752810522539,6.52852904,180.85,180.84,0.71]
[1752810522733,32.52852904,180.85,180.84,0.71]
[1752810525836,32.52852904,180.85,180.83,28.2]
[1752810525837,38.05801616,180.85,180.83,28.2]
[1752810526042,31.88948712,180.85,180.81,0.71]
[1752810526226,6.52852904,180.82,180.81,0.71]
[1752810526743,6.52852904,180.82,180.79,35.6042784]
[1752810526924,6.52852904,180.81,180.79,35.6042784]
[1752810527124,5.53055355,180.82,180.79,28.5189784]
[1752810527125,6.52852904,180.8,180.79,28.5189784]
[1752810527843,6.52852904,180.8,180.79,29.2289784]
[1752810532140,0.06,180.83,180.79,34.76013048]
[1752810532342,6.58852904,180.83,180.8,17.44468397]
[1752810532652,6.58852904,180.83,180.81,0.66]
[1752810532820,6.58852904,180.83,180.82,28.2]
[1752810533030,6.58852904,180.83,180.82,28.86]
[1752810533826,6.58852904,180.83,180.82,32.7042848]
[1752810534176,6.58852904,180.83,180.82,28.86]
[1752810535932,0.06,180.83,180.82,28.86]
[1752810536244,6.58852904,180.83,180.82,28.86]
[1752810537236,6.58852904,180.83,180.82,32.70376694]
[1752810543150,6.58852904,180.83,180.82,32.04376694]
[1752810543353,38.47858489,180.83,180.79,0.3189784]
[1752810543559,6.52852904,180.8,180.79,0.3189784]
[1752810544059,12.05950249,180.8,180.79,0.3189784]
[1752810544251,18.58803153,180.8,180.79,0.3189784]
[1752810545132,18.94803153,180.8,180.79,0.3189784]
[1752810545335,18.58803153,180.8,180.79,0.3189784]
[1752810546044,44.58803153,180.8,180.79,0.3189784]
[1752810549544,39.05705808,180.8,180.79,0.3189784]
[1752810549745,32.52852904,180.8,180.79,0.3189784]
[1752810549945,26.0,180.8,180.79,0.9789784]
[1752810550259,32.52852904,180.8,180.79,0.9789784]
[1752810551145,6.52852904,180.8,180.79,29.1789784]
[1752810552764,6.52852904,180.8,180.79,28.5189784]
[1752810553369,6.52852904,180.8,180.79,0.3189784]
[1752810554849,12.05950249,180.8,180.79,0.3189784]
[1752810555172,44.58803153,180.8,180.79,0.3189784]
[1752810555347,44.94803153,180.8,180.79,0.3189784]
[1752810556944,26.14216157,180.77,180.76,0.03]
[1752810557151,32.67069061,180.77,180.76,0.03]
[1752810557348,33.03069061,180.77,180.76,0.03]
[1752810557866,38.56258196,180.77,180.76,0.03]
[1752810560258,38.56258196,180.77,180.75,0.03]
[1752810560566,6.52852904,180.76,180.75,0.03]
[1752810560743,6.88852904,180.76,180.75,0.03]
[1752810561549,12.42072642,180.76,180.75,0.03]
[1752810561963,12.06072642,180.76,180.75,0.03]
[1752810563861,12.42072642,180.76,180.75,0.03]
[1752810564463,12.06072642,180.76,180.75,0.03]
[1752810565051,40.76288799,180.76,180.72,0.03]
[1752810565263,6.52852904,180.73,180.72,0.03]
[1752810565442,26.0,180.74,180.72,0.03]
[1752810565649,26.0,180.74,180.72,0.71]
[1752810565650,6.52852904,180.73,180.72,0.71]
[1752810567250,13.82864914,180.79,180.72,0.71]
[1752810567251,10.93505913,180.8,180.72,0.71]
[1752810567452,6.52852904,180.74,180.72,6.24340357]
[1752810567656,26.0,180.77,180.73,0.68]
[1752810567856,6.52852904,180.74,180.72,0.03]
[1752810568057,6.52852904,180.73,180.72,0.03]
[1752810568960,6.52852904,180.73,180.72,6.24334136]
[1752810570072,26.0,180.77,180.72,6.24334136]
[1752810570281,6.52852904,180.73,180.72,5.56334136]
[1752810570873,6.52852904,180.74,180.72,6.24334136]
[1752810571172,26.0,180.76,180.73,0.68]
[1752810571563,6.52852904,180.74,180.73,0.68]
[1752810574378,6.52852904,180.74,180.73,0.71]
[1752810576378,12.0613386,180.74,180.73,0.03]
[1752810577478,12.4213386,180.74,180.73,0.03]
[1752810577677,12.56350017,180.74,180.73,0.03]
[1752810578268,0.14216157,180.73,180.72,0.03]
[1752810578471,7.03069061,180.73,180.72,0.03]
[1752810579376,12.5638063,180.73,180.72,0.03]
[1752810582168,12.5638063,180.73,180.71,0.2]
[1752810582371,39.41705808,180.72,180.71,0.2]
[1752810582681,0.14216157,180.71,180.7,0.03]
[1752810582866,26.0,180.72,180.7,0.71]
[1752810583070,6.52852904,180.71,180.7,0.71]
[1752810583586,13.41705808,180.71,180.7,0.03]
[1752810583782,26.0,180.69,180.68,0.03]
[1752810583966,32.52852904,180.69,180.68,0.03]
[1752810584165,6.52852904,180.66,180.65,0.2]
[1752810584578,12.06378864,180.66,180.65,0.2]
[1752810587092,6.52852904,180.66,180.65,0.2]
[1752810587763,12.06378864,180.66,180.65,0.2]
[1752810588170,12.42378864,180.66,180.65,0.2]